fUST/lending_fUST_20250504
["ID","MTS","AMOUNT","RATE_DAILY","PERIOD"]
[359735241,1746288046245,320.0,0.00017948,2]
[359735245,1746288147519,642.6022272,0.00017049,2]
[359735246,1746288182759,24900.0,0.00017049,2]
[359735248,1746288189005,587.3154962,0.0001789,2]
[359735249,1746288216300,1684.88959667,0.00017949,2]
[359735250,1746288313319,-300.0,0.00018047,2]
[359735251,1746288313341,-299.0,0.00018047,2]
[359735252,1746288313363,-1200.0,0.00018047,2]
[359735253,1746288313385,-300.0,0.00018048,2]
[359735254,1746288313407,-699.57,0.00018048,2]
[359735255,1746288313427,-160.0,0.00018048,2]
[359735256,1746288313449,-400.0,0.00018048,2]
[359735257,1746288313471,-400.0,0.00018048,2]
[359735258,1746288313496,-722.77,0.00018048,2]
[359735259,1746288313519,-500.0,0.00018049,2]
[359735260,1746288313543,-500.0,0.00018049,2]
[359735261,1746288313565,-500.0,0.00018049,2]
[359735262,1746288313599,-889.6421884,0.00018049,2]
[359735263,1746288313621,-161.18124091,0.00018049,2]
[359735264,1746288313644,-500.0,0.00018049,2]
[359735265,1746288313666,-500.0,0.00018049,2]
[359735266,1746288313701,-889.6421884,0.00018049,2]
[359735267,1746288313725,-325.13955203,0.00018049,2]
[359735268,1746288313750,-500.0,0.00018049,2]
[359735269,1746288313782,-889.6421884,0.00018049,2]
[359735270,1746288313806,-500.0,0.00018049,2]
[359735271,1746288313829,-500.0,0.00018049,2]
[359735272,1746288313851,-500.0,0.00018049,2]
[359735273,1746288313890,-889.6421884,0.00018049,2]
[359735274,1746288313924,-889.6421884,0.00018049,2]
[359735275,1746288313949,-500.0,0.00018049,2]
[359735276,1746288313972,-500.0,0.00018049,2]
[359735277,1746288314006,-889.6421884,0.00018049,2]
[359735278,1746288314038,-889.6421884,0.00018049,2]
[359735279,1746288314070,-889.6421884,0.00018049,2]
[359735280,1746288314103,-889.6421884,0.00018049,2]
[359735281,1746288314135,-889.6421884,0.00018049,2]
[359735282,1746288314169,-889.6421884,0.00018049,2]
[359735283,1746288314202,-889.6421884,0.00018049,2]
[359735284,1746288314233,-889.6421884,0.00018049,2]
[359735285,1746288314264,-889.6421884,0.00018049,2]
[359735286,1746288314295,-889.6421884,0.00018049,2]
[359735287,1746288314327,-187.70638106,0.00018049,2]
[359735288,1746288325500,878.71942116,0.00017949,2]
[359735289,1746288327516,878.71942113,0.00017974,2]
[359735290,1746288329540,878.71942113,0.00017999,2]
[359735293,1746288380014,-700.0,0.00018024,2]
[359735294,1746288430257,-178.71942113,0.00018024,2]
[359735295,1746288430280,-300.0,0.00018047,2]
[359735296,1746288430301,-300.0,0.00018048,2]
[359735297,1746288430323,-400.0,0.00018048,2]
[359735298,1746288430345,-420.67,0.00018048,2]
[359735299,1746288430367,-1312.52,0.00018048,2]
[359735300,1746288430390,-2060.25,0.00018048,2]
[359735301,1746288430411,-601.4,0.00018048,2]
[359735302,1746288430434,-400.0,0.00018048,2]
[359735303,1746288430457,-493.4,0.00018048,2]
[359735304,1746288430604,-426.35,0.00018048,2]
[359735305,1746288430628,-967.56,0.00018048,2]
[359735306,1746288430650,-622.38,0.00018048,2]
[359735307,1746288430672,-513.81,0.00018048,2]
[359735308,1746288430693,-400.0,0.00018048,2]
[359735309,1746288430714,-878.71942113,0.00018049,2]
[359735310,1746288430734,-8293.83241247,0.00018049,2]
[359735311,1746288430763,-701.93580734,0.00018049,2]
[359735312,1746288430793,-889.6421884,0.00018049,2]
[359735313,1746288430823,-889.6421884,0.00018049,2]
[359735314,1746288430855,-889.6421884,0.00018049,2]
[359735315,1746288430887,-889.6421884,0.00018049,2]
[359735316,1746288430917,-889.6421884,0.00018049,2]
[359735317,1746288430948,-889.6421884,0.00018049,2]
[359735318,1746288430977,-889.6421884,0.00018049,2]
[359735319,1746288431008,-889.6421884,0.00018049,2]
[359735320,1746288431038,-889.6421884,0.00018049,2]
[359735321,1746288431068,-889.6421884,0.00018049,2]
[359735322,1746288431099,-889.6421884,0.00018049,2]
[359735323,1746288431128,-889.6421884,0.00018049,2]
[359735324,1746288431157,-889.6421884,0.00018049,2]
[359735325,1746288431187,-880.74576652,0.00018049,2]
[359735326,1746288431216,-880.74576652,0.00018049,2]
[359735327,1746288431246,-880.74576652,0.00018049,2]
[359735328,1746288431277,-880.74576652,0.00018049,2]
[359735329,1746288431307,-880.74576652,0.00018049,2]
[359735330,1746288431336,-880.74576652,0.00018049,2]
[359735331,1746288431367,-880.74576652,0.00018049,2]
[359735332,1746288431397,-880.74576652,0.00018049,2]
[359735333,1746288431427,-880.74576652,0.00018049,2]
[359735334,1746288431459,-880.74576652,0.00018049,2]
[359735335,1746288431491,-880.74576652,0.00018049,2]
[359735336,1746288431526,-382.90105701,0.00018049,2]
[359735337,1746288456558,1474.27839713,0.00017949,2]
[359735339,1746288503739,-300.0,0.00018047,2]
[359735340,1746288503760,-400.0,0.00018048,2]
[359735341,1746288503782,-400.0,0.00018048,2]
[359735342,1746288503805,-479.67,0.00018048,2]
[359735343,1746288503829,-463.13,0.00018048,2]
[359735344,1746288503850,-400.0,0.00018048,2]
[359735345,1746288503873,-673.45,0.00018048,2]
[359735346,1746288503894,-400.0,0.00018048,2]
[359735347,1746288503916,-891.93,0.00018048,2]
[359735348,1746288503938,-577.31,0.00018048,2]
[359735349,1746288503969,-14.51,0.00018049,2]
[359735350,1746288504000,236.38542177,0.00017948,2]
[359735351,1746288519139,308.10469,0.00017097,2]
[359735353,1746288549050,803.62925085,0.00017924,2]
[359735354,1746288589149,1091.5200051,0.00017225,2]
[359735398,1746288631964,-300.0,0.00018047,2]
[359735400,1746288631974,-1200.0,0.00018047,2]
[359735402,1746288631983,-300.0,0.00018047,2]
[359735404,1746288631993,-687.09,0.00018048,2]
[359735406,1746288632002,-400.0,0.00018048,2]
[359735408,1746288632011,-400.0,0.00018048,2]
[359735410,1746288632020,-400.0,0.00018048,2]
[359735412,1746288632030,-709.32,0.00018048,2]
[359735414,1746288632039,-400.0,0.00018048,2]
[359735416,1746288632049,-682.51,0.00018048,2]
[359735418,1746288632059,-405.74,0.00018048,2]
[359735420,1746288632068,-922.05,0.00018048,2]
[359735422,1746288632077,-400.0,0.00018048,2]
[359735424,1746288632087,-1974.4,0.00018048,2]
[359735426,1746288632096,-508.78,0.00018048,2]
[359735428,1746288632105,-400.0,0.00018048,2]
[359735430,1746288632114,-593.01,0.00018048,2]
[359735432,1746288632123,-400.0,0.00018048,2]
[359735434,1746288632132,-419.81,0.00018048,2]
[359735436,1746288632142,-472.84,0.00018048,2]
[359735437,1746288632151,-400.0,0.00018048,2]
[359735438,1746288632161,-408.58,0.00018048,2]
[359735440,1746288632170,-1274.5,0.00018048,2]
[359735442,1746288632179,-927.25,0.00018048,2]
[359735444,1746288632188,-483.33470951,0.00018049,2]
[359735446,1746288632198,-880.74576652,0.00018049,2]
[359735448,1746288632207,-880.74576652,0.00018049,2]
[359735450,1746288632216,-880.74576652,0.00018049,2]
[359735452,1746288632225,-880.74576652,0.00018049,2]
[359735454,1746288632234,-880.74576652,0.00018049,2]
[359735456,1746288632244,-880.74576652,0.00018049,2]
[359735458,1746288632254,-880.74576652,0.00018049,2]
[359735460,1746288632263,-880.74576652,0.00018049,2]
[359735462,1746288632272,-880.74576652,0.00018049,2]
[359735464,1746288632281,-880.74576652,0.00018049,2]
[359735466,1746288632291,-880.74576652,0.00018049,2]
[359735468,1746288632301,-880.74576652,0.00018049,2]
[359735470,1746288632310,-865.64726766,0.00018049,2]
[359735472,1746288632320,-865.64726766,0.00018049,2]
[359735474,1746288632330,-865.64726766,0.00018049,2]
[359735476,1746288632339,-865.64726766,0.00018049,2]
[359735478,1746288632348,-865.64726766,0.00018049,2]
[359735480,1746288632357,-865.64726766,0.00018049,2]
[359735482,1746288632366,-865.64726766,0.00018049,2]
[359735484,1746288632376,-865.64726766,0.00018049,2]
[359735486,1746288632385,-865.64726766,0.00018049,2]
[359735488,1746288632395,-865.64726766,0.00018049,2]
[359735490,1746288632404,-865.64726766,0.00018049,2]
[359735492,1746288632414,-865.64726766,0.00018049,2]
[359735494,1746288632423,-865.64726766,0.00018049,2]
[359735496,1746288632432,-865.64726766,0.00018049,2]
[359735498,1746288632441,-865.64726766,0.00018049,2]
[359735500,1746288632451,-865.64726766,0.00018049,2]
[359735502,1746288632460,-865.64726766,0.00018049,2]
[359735504,1746288632470,-865.64726766,0.00018049,2]
[359735506,1746288632479,-838.48970632,0.00018049,2]
[359735509,1746288632488,-838.48970632,0.00018049,2]
[359735511,1746288632498,-838.48970632,0.00018049,2]
[359735512,1746288632507,-838.48970632,0.00018049,2]
[359735514,1746288632517,-838.48970632,0.00018049,2]
[359735516,1746288632526,-38.47859836,0.00018049,2]
[359735519,1746288632539,-800.01110796,0.00018049,2]
[359735521,1746288632548,-838.48970632,0.00018049,2]
[359735523,1746288632557,-838.48970632,0.00018049,2]
[359735525,1746288632567,-838.48970632,0.00018049,2]
[359735527,1746288632576,-838.48970632,0.00018049,2]
[359735529,1746288632586,-838.48970632,0.00018049,2]
[359735531,1746288632595,-838.48970632,0.00018049,2]
[359735533,1746288632604,-838.48970632,0.00018049,2]
[359735535,1746288632614,-838.48970632,0.00018049,2]
[359735537,1746288632623,-1024.82075217,0.00018049,2]
[359735539,1746288632633,-1024.82075217,0.00018049,2]
[359735541,1746288632642,-1024.82075217,0.00018049,2]
[359735543,1746288632656,-1024.82075217,0.00018049,2]
[359735545,1746288632665,-19888.73356039,0.0001805,2]
[359735547,1746288632674,-350.21330935,0.00018053,2]
[359735549,1746288632683,-500.0,0.00018053,2]
[359735551,1746288632693,-253.75269478,0.00018053,2]
[359735553,1746288632703,-500.0,0.00018054,2]
[359735555,1746288632713,-500.0,0.00018054,2]
[359735556,1746288632723,-500.0,0.00018054,2]
[359735558,1746288632732,-500.0,0.00018054,2]
[359735560,1746288632742,-154.60213806,0.00018054,2]
[359736100,1746288640604,-492.4,0.00018048,2]
[359736103,1746288640614,-101.50122973,0.00018048,2]
[359736369,1746288643323,-298.49877027,0.00018048,2]
[359736371,1746288643334,-345.39786194,0.00018054,2]
[359736373,1746288643344,-951.85,0.00018136,3]
[359736375,1746288643353,-475.93,0.00018136,3]
[359736377,1746288643362,-237.96,0.00018136,3]
[359736379,1746288643371,-713.92,0.00018136,3]
[359736381,1746288643381,-293.22,0.00018136,3]
[359736383,1746288643390,-1534.91827072,0.00018146,2]
[359736386,1746288643401,-13601.19894048,0.00018146,2]
[359736607,1746288645949,-1549.53,0.00018048,2]
[359736609,1746288645962,-452.99053365,0.00018146,2]
[359736655,1746288646910,-300.0,0.00018048,2]
[359736656,1746288646919,-7468.91439928,0.00018146,2]
[359736670,1746288670527,651.63759083,0.00017927,2]
[359736678,1746288787221,191.37972229,0.00017945,2]
[359736683,1746288917057,1454.38513291,0.00017944,2]
[359736684,1746288950292,235.961928,0.00017181,2]
[359736700,1746289000908,878.67736418,0.00017942,2]
[359736701,1746289002854,878.67736417,0.00017944,2]
[359736702,1746289004870,878.67736417,0.00017945,2]
[359736703,1746289006856,878.67736417,0.00017947,2]
[359736704,1746289008899,878.67736417,0.00017948,2]
[359736706,1746289065275,364.17627,0.00017043,2]
[359736707,1746289069718,1138.35839645,0.00017944,2]
[359736708,1746289150533,250.32680494,0.00017865,2]
[359736709,1746289154233,250.0,0.00017043,2]
[359736710,1746289172543,1272.58699127,0.00017939,2]
[359736714,1746289432612,1113.51361737,0.0001793,2]
[359736715,1746289462628,24900.0,0.00017038,2]
[359736719,1746289537204,310.825821,0.00017033,2]
[359736725,1746289692813,974.32441519,0.00017928,2]
[359736759,1746289832154,-300.0,0.00018025,2]
[359736761,1746289832165,-300.0,0.00018026,2]
[359736763,1746289832175,-300.0,0.00018026,2]
[359736765,1746289832185,-300.0,0.00018026,2]
[359736767,1746289832195,-300.0,0.00018026,2]
[359736769,1746289832205,-1200.0,0.00018026,2]
[359736771,1746289832215,-500.0,0.00018027,2]
[359736773,1746289832225,-487.60221849,0.00018027,2]
[359736778,1746289832258,-12.39778151,0.00018027,2]
[359736781,1746289832267,-500.0,0.00018027,2]
[359736783,1746289832277,-500.0,0.00018027,2]
[359736785,1746289832287,-500.0,0.00018027,2]
[359736787,1746289832297,-500.0,0.00018027,2]
[359736789,1746289832307,-500.0,0.00018027,2]
[359736791,1746289832316,-500.0,0.00018027,2]
[359736793,1746289832325,-403.49597466,0.00018027,2]
[359736796,1746289832345,-96.50402534,0.00018027,2]
[359736799,1746289832355,-500.0,0.00018027,2]
[359736800,1746289832368,-500.0,0.00018027,2]
[359736802,1746289832378,-500.0,0.00018027,2]
[359736804,1746289832388,-500.0,0.00018027,2]
[359736807,1746289832397,-500.0,0.00018027,2]
[359736809,1746289832409,-500.0,0.00018027,2]
[359736812,1746289832418,-500.0,0.00018027,2]
[359736815,1746289832428,-500.0,0.00018027,2]
[359736818,1746289832439,-500.0,0.00018027,2]
[359736821,1746289832449,-500.0,0.00018027,2]
[359736823,1746289832458,-500.0,0.00018027,2]
[359736825,1746289832468,-500.0,0.00018027,2]
[359736827,1746289832478,-500.0,0.00018027,2]
[359736829,1746289832487,-500.0,0.00018027,2]
[359736831,1746289832496,-500.0,0.00018027,2]
[359736833,1746289832506,-500.0,0.00018027,2]
[359736835,1746289832515,-500.0,0.00018027,2]
[359736837,1746289832525,-500.0,0.00018027,2]
[359736839,1746289832534,-500.0,0.00018027,2]
[359736841,1746289832544,-500.0,0.00018027,2]
[359736843,1746289832553,-500.0,0.00018027,2]
[359736845,1746289832563,-500.0,0.00018027,2]
[359736847,1746289832573,-500.0,0.00018027,2]
[359736849,1746289832582,-500.0,0.00018027,2]
[359736851,1746289832592,-500.0,0.00018027,2]
[359736853,1746289832601,-500.0,0.00018027,2]
[359736855,1746289832610,-500.0,0.00018027,2]
[359736857,1746289832619,-500.0,0.00018027,2]
[359736859,1746289832628,-500.0,0.00018027,2]
[359736861,1746289832638,-500.0,0.00018027,2]
[359736863,1746289832647,-432.5139552,0.00018027,2]
[359736865,1746289832657,-500.0,0.00018027,2]
[359736867,1746289832666,-500.0,0.00018027,2]
[359736870,1746289832675,-500.0,0.00018027,2]
[359736872,1746289832685,-500.0,0.00018027,2]
[359736874,1746289832694,-500.0,0.00018027,2]
[359736876,1746289832703,-500.0,0.00018027,2]
[359736878,1746289832713,-500.0,0.00018027,2]
[359736880,1746289832723,-500.0,0.00018027,2]
[359736882,1746289832731,-500.0,0.00018027,2]
[359736884,1746289832740,-500.0,0.00018027,2]
[359736886,1746289832750,-500.0,0.00018027,2]
[359736888,1746289832763,-500.0,0.00018027,2]
[359736890,1746289832773,-500.0,0.00018027,2]
[359736892,1746289832782,-500.0,0.00018027,2]
[359736894,1746289832792,-500.0,0.00018027,2]
[359736910,1746289832801,-500.0,0.00018027,2]
[359736911,1746289832979,-500.0,0.00018027,2]
[359736912,1746289832989,-500.0,0.00018027,2]
[359736913,1746289832999,-500.0,0.00018027,2]
[359736914,1746289833008,-500.0,0.00018027,2]
[359736915,1746289833017,-500.0,0.00018027,2]
[359736916,1746289833027,-500.0,0.00018027,2]
[359736917,1746289833037,-626.13443103,0.00018027,2]
[359736918,1746289833046,-500.0,0.00018027,2]
[359736919,1746289833057,-500.0,0.00018027,2]
[359736920,1746289833067,-500.0,0.00018027,2]
[359736921,1746289833077,-500.0,0.00018027,2]
[359736922,1746289833087,-500.0,0.00018027,2]
[359736923,1746289833096,-500.0,0.00018027,2]
[359736924,1746289833107,-500.0,0.00018027,2]
[359736925,1746289833116,-500.0,0.00018027,2]
[359736926,1746289833126,-500.0,0.00018027,2]
[359736927,1746289833136,-500.0,0.00018027,2]
[359736928,1746289833145,-500.0,0.00018027,2]
[359736929,1746289833156,-290.41938812,0.00018027,2]
[359736930,1746289833166,-500.0,0.00018027,2]
[359736931,1746289833175,-461.24491432,0.00018027,2]
[359736932,1746289833185,-400.0,0.00018027,2]
[359736933,1746289833194,-531.01813321,0.00018027,2]
[359736934,1746289833203,-24303.47904953,0.00018028,2]
[359736935,1746289833212,-740.5,0.00018029,2]
[359736936,1746289833222,-471.88,0.00018029,2]
[359736937,1746289833231,-400.0,0.00018029,2]
[359736938,1746289833240,-443.84,0.00018029,2]
[359736939,1746289833250,-667.63,0.00018029,2]
[359736940,1746289833259,-400.0,0.00018029,2]
[359736941,1746289833269,-762.5,0.00018029,2]
[359736942,1746289833279,-658.46,0.00018029,2]
[359736943,1746289833288,-553.25,0.00018029,2]
[359736944,1746289833298,-400.0,0.00018029,2]
[359736945,1746289833307,-400.0,0.00018029,2]
[359736946,1746289833316,-679.77,0.00018029,2]
[359736947,1746289833326,-400.0,0.00018029,2]
[359736948,1746289833335,-400.0,0.00018029,2]
[359736949,1746289833345,-400.0,0.00018029,2]
[359736950,1746289833354,-402.32,0.00018029,2]
[359736951,1746289833368,-807.25,0.00018029,2]
[359736952,1746289833378,-573.85,0.00018029,2]
[359736953,1746289833387,-1892.13,0.00018029,2]
[359736954,1746289833397,-1221.4,0.00018029,2]
[359736955,1746289833406,-900.29,0.00018029,2]
[359736956,1746289833416,-568.3,0.00018029,2]
[359736957,1746289833425,-400.0,0.00018029,2]
[359736958,1746289833435,-400.0,0.00018029,2]
[359736959,1746289833445,-453.14,0.00018029,2]
[359736960,1746289833455,-400.0,0.00018029,2]
[359736961,1746289833464,-40907.51,0.0001803,2]
[359736962,1746289833473,-555.24,0.0001803,3]
[359736963,1746289833483,-277.62,0.0001803,3]
[359736964,1746289833492,-832.9,0.0001803,3]
[359736965,1746289833502,-587.56,0.00018037,2]
[359736966,1746289833511,-400.0,0.00018037,2]
[359736967,1746289833521,-400.0,0.00018037,2]
[359736968,1746289833530,-602.58,0.00018037,2]
[359736969,1746289833540,-400.0,0.00018037,2]
[359736970,1746289833549,-400.0,0.00018037,2]
[359736971,1746289833558,-1484.97,0.00018037,2]
[359736972,1746289833568,-400.0,0.00018038,2]
[359736973,1746289833578,-400.0,0.00018038,2]
[359736974,1746289833588,-400.0,0.00018038,2]
[359736975,1746289833598,-400.0,0.00018038,2]
[359736976,1746289833607,-640.9,0.00018038,2]
[359736977,1746289833617,-400.0,0.00018038,2]
[359736978,1746289833627,-400.0,0.00018038,2]
[359736979,1746289833637,-400.0,0.00018038,2]
[359736980,1746289833646,-400.0,0.00018038,2]
[359736981,1746289833656,-400.0,0.00018038,2]
[359736982,1746289833665,-400.0,0.00018038,2]
[359736983,1746289833675,-400.0,0.00018038,2]
[359736984,1746289833684,-400.0,0.00018038,2]
[359736985,1746289833694,-400.0,0.00018038,2]
[359736986,1746289833705,-400.0,0.00018038,2]
[359736987,1746289833715,-400.0,0.00018038,2]
[359736988,1746289833725,-420.62,0.00018038,2]
[359736989,1746289833735,-400.0,0.00018038,2]
[359736990,1746289833745,-400.0,0.00018038,2]
[359736991,1746289833755,-400.0,0.00018038,2]
[359736992,1746289833765,-400.0,0.00018038,2]
[359736993,1746289833775,-400.0,0.00018038,2]
[359736994,1746289833784,-400.0,0.00018038,2]
[359736995,1746289833794,-400.0,0.00018038,2]
[359736996,1746289833803,-400.0,0.00018038,2]
[359736997,1746289833813,-400.0,0.00018038,2]
[359736998,1746289833823,-400.0,0.00018038,2]
[359736999,1746289833833,-404.5,0.00018038,2]
[359737000,1746289833843,-400.0,0.00018038,2]
[359737001,1746289833852,-400.0,0.00018038,2]
[359737002,1746289833862,-533.04,0.00018038,2]
[359737003,1746289833872,-422.04,0.00018038,2]
[359737004,1746289833882,-400.0,0.00018038,2]
[359737005,1746289833892,-532.53,0.00018038,2]
[359737006,1746289833901,-400.0,0.00018038,2]
[359737007,1746289833912,-400.0,0.00018038,2]
[359737008,1746289833921,-518.19,0.00018038,2]
[359737009,1746289833931,-400.0,0.00018038,2]
[359737010,1746289833941,-400.0,0.00018038,2]
[359737011,1746289833951,-557.27,0.00018038,2]
[359737012,1746289833960,-1164.38,0.00018038,2]
[359737013,1746289833970,-473.86253821,0.00018038,2]
[359737014,1746289833980,-400.0,0.00018038,2]
[359737015,1746289833989,-440.47737642,0.00018038,2]
[359737016,1746289834209,-354.36262358,0.00018038,2]
[359737017,1746289834219,-400.0,0.00018038,2]
[359737018,1746289834228,-505.81,0.00018038,2]
[359737019,1746289834238,-400.0,0.00018038,2]
[359737020,1746289834248,-400.0,0.00018038,2]
[359737021,1746289834257,-400.0,0.00018038,2]
[359737022,1746289834267,-400.0,0.00018038,2]
[359737023,1746289834277,-400.0,0.00018038,2]
[359737024,1746289834286,-448.64826215,0.00018038,2]
[359737025,1746289834296,-1996.47,0.00018038,2]
[359737026,1746289834306,-400.0,0.00018038,2]
[359737027,1746289834315,-444.24,0.00018038,2]
[359737028,1746289834325,-400.0,0.00018038,2]
[359737029,1746289834335,-400.0,0.00018038,2]
[359737030,1746289834344,-400.0,0.00018038,2]
[359737031,1746289834354,-720.5,0.00018038,2]
[359737032,1746289834370,-400.0,0.00018038,2]
[359737033,1746289834380,-400.0,0.00018038,2]
[359737034,1746289834390,-400.0,0.00018038,2]
[359737035,1746289834399,-606.32,0.00018038,2]
[359737036,1746289834409,-400.0,0.00018038,2]
[359737037,1746289834419,-779.25,0.00018038,2]
[359737038,1746289834428,-87980.2263909,0.0001804,2]
[359737039,1746289834438,-400.0,0.00018044,2]
[359737040,1746289834448,-400.0,0.00018044,2]
[359737041,1746289834458,-400.0,0.00018044,2]
[359737042,1746289834467,-400.0,0.00018044,2]
[359737043,1746289834477,-400.0,0.00018044,2]
[359737044,1746289834486,-400.0,0.00018044,2]
[359737045,1746289834495,-400.0,0.00018044,2]
[359737046,1746289834505,-400.0,0.00018044,2]
[359737047,1746289834514,-400.0,0.00018044,2]
[359737048,1746289834523,-400.0,0.00018044,2]
[359737049,1746289834532,-400.0,0.00018044,2]
[359737050,1746289834542,-212.26447749,0.00018044,2]
[359737051,1746289834552,-400.0,0.00018044,2]
[359737052,1746289834561,-400.0,0.00018044,2]
[359737053,1746289834570,-400.0,0.00018044,2]
[359737054,1746289834580,-400.0,0.00018044,2]
[359737055,1746289834591,-433.64,0.00018044,2]
[359737056,1746289834601,-400.0,0.00018044,2]
[359737057,1746289834612,-303.58926429,0.00018044,2]
[359737058,1746289834623,-400.0,0.00018044,2]
[359737059,1746289834632,-400.0,0.00018044,2]
[359737060,1746289834643,-400.0,0.00018044,2]
[359737061,1746289834652,-400.0,0.00018044,2]
[359737062,1746289834663,-400.0,0.00018044,2]
[359737063,1746289834673,-400.0,0.00018044,2]
[359737064,1746289834682,-454.65275815,0.00018044,2]
[359737065,1746289834692,-400.0,0.00018044,2]
[359737066,1746289834704,-400.0,0.00018044,2]
[359737067,1746289834716,-400.0,0.00018044,2]
[359737068,1746289834726,-400.0,0.00018044,2]
[359737069,1746289834736,-400.0,0.00018044,2]
[359737070,1746289834747,-400.0,0.00018044,2]
[359737071,1746289834757,-400.0,0.00018044,2]
[359737072,1746289834767,-400.0,0.00018044,2]
[359737073,1746289834777,-400.0,0.00018044,2]
[359737074,1746289834788,-400.0,0.00018044,2]
[359737075,1746289834798,-400.0,0.00018044,2]
[359737076,1746289834808,-400.0,0.00018044,2]
[359737077,1746289834818,-400.0,0.00018044,2]
[359737078,1746289834827,-400.0,0.00018044,2]
[359737079,1746289834837,-400.0,0.00018044,2]
[359737080,1746289834847,-500.0,0.00018045,2]
[359737081,1746289834857,-28111.49597247,0.00018046,2]
[359737082,1746289834867,-400.0,0.00018048,2]
[359737083,1746289834877,-485.26,0.00018048,2]
[359737084,1746289834888,-400.0,0.00018048,2]
[359737085,1746289834897,-400.0,0.00018048,2]
[359737086,1746289834907,-409.54966815,0.00018048,2]
[359737087,1746289834916,-400.0,0.00018048,2]
[359737088,1746289834926,-400.0,0.00018048,2]
[359737089,1746289834935,-400.0,0.00018048,2]
[359737090,1746289834944,-266.75170491,0.00018048,2]
[359737091,1746289834954,-400.0,0.00018048,2]
[359737092,1746289834964,-449.55,0.00018048,2]
[359737093,1746289834973,-400.0,0.00018048,2]
[359737094,1746289834982,-466.9,0.00018048,2]
[359737095,1746289834992,-400.0,0.00018048,2]
[359737096,1746289835001,-1864.98,0.00018048,2]
[359737097,1746289835011,-400.0,0.00018048,2]
[359737098,1746289835020,-192.76326822,0.00018048,2]
[359737142,1746289838071,-207.23673178,0.00018048,2]
[359737157,1746289838202,-422.26,0.00018048,2]
[359737159,1746289838212,-400.0,0.00018048,2]
[359737161,1746289838221,-400.0,0.00018048,2]
[359737163,1746289838231,-400.0,0.00018048,2]
[359737166,1746289838241,-948.02,0.00018048,2]
[359737170,1746289838250,-420.76,0.00018048,2]
[359737174,1746289838260,-400.0,0.00018048,2]
[359737178,1746289838269,-400.0,0.00018048,2]
[359737181,1746289838278,-400.0,0.00018048,2]
[359737183,1746289838288,-400.0,0.00018048,2]
[359737185,1746289838298,-400.0,0.00018048,2]
[359737187,1746289838307,-400.0,0.00018048,2]
[359737190,1746289838317,-152.0,0.00018084,2]
[359737192,1746289838326,-160.86072009,0.00018148,2]
[359737195,1746289838336,-308.95694,0.00018149,2]
[359737196,1746289838346,-400.0,0.00018149,2]
[359737199,1746289838356,-400.0,0.00018149,2]
[359737200,1746289838369,-151.0,0.0001815,2]
[359737203,1746289838378,-151.0,0.00018168,2]
[359737204,1746289838387,-252.29492626,0.00018173,2]
[359737695,1746289843303,-400.0,0.00018027,2]
[359737697,1746289843314,-874.42,0.00018029,2]
[359737699,1746289843323,-238.29931067,0.00018038,2]
[359738006,1746289846251,-400.0,0.00018027,2]
[359738008,1746289846261,-510.83,0.00018037,2]